[Event "Late-Titled-Tuesday-Blitz-February-06-2024"]
[Site "Chess.com"]
[Date "2024.02.06"]
[Round "6"]
[White "Fh2411"]
[Black "andrzej"]
[Result "0-1"]
[WhiteElo "2597"]
[BlackElo "2455"]
[TimeControl "180+1"]
[EndTime "15:07:47 PST"]
[Termination "andrzej won by resignation"]

1. d4 {[%clk 0:02:57.7]} 1... d5 {[%clk 0:02:55.4]} 2. Nf3 {[%clk 0:02:57.7]}
2... Nf6 {[%clk 0:02:54.2]} 3. Bf4 {[%clk 0:02:58.1]} 3... c5 {[%clk 0:02:49.3]}
4. e3 {[%clk 0:02:57.8]} 4... Nc6 {[%clk 0:02:34.6]} 5. Nbd2 {[%clk 0:02:55]}
5... cxd4 {[%clk 0:02:26.1]} 6. exd4 {[%clk 0:02:54]} 6... Qb6 {[%clk
0:02:26.7]} 7. Nb3 {[%clk 0:02:50.1]} 7... Bf5 {[%clk 0:02:26.9]} 8. c3 {[%clk
0:02:48.4]} 8... e6 {[%clk 0:02:26.7]} 9. h3 {[%clk 0:02:44.4]} 9... Be7 {[%clk
0:02:21.9]} 10. a4 {[%clk 0:02:43.2]} 10... a6 {[%clk 0:02:21.8]} 11. a5 {[%clk
0:02:39.8]} 11... Qd8 {[%clk 0:02:22.2]} 12. Be2 {[%clk 0:02:38.6]} 12... O-O
{[%clk 0:02:21.3]} 13. O-O {[%clk 0:02:39.2]} 13... h6 {[%clk 0:02:17.8]} 14.
Ne1 {[%clk 0:02:13.4]} 14... Ne4 {[%clk 0:02:10.6]} 15. Nd3 {[%clk 0:02:07.9]}
15... Bg5 {[%clk 0:02:01.5]} 16. Bh2 {[%clk 0:01:52.1]} 16... Re8 {[%clk
0:02:01.4]} 17. Ndc5 {[%clk 0:01:25.2]} 17... Nxc5 {[%clk 0:01:51.6]} 18. Nxc5
{[%clk 0:01:24.3]} 18... Qc8 {[%clk 0:01:43.9]} 19. b4 {[%clk 0:01:17.3]} 19...
Bf6 {[%clk 0:01:32.2]} 20. f4 {[%clk 0:01:04]} 20... Na7 {[%clk 0:01:29.2]} 21.
Bg3 {[%clk 0:00:59.3]} 21... Nb5 {[%clk 0:01:27.7]} 22. Bxb5 {[%clk 0:00:55]}
22... axb5 {[%clk 0:01:27.7]} 23. Qe1 {[%clk 0:00:49.8]} 23... Qc6 {[%clk
0:01:24.7]} 24. Bh4 {[%clk 0:00:49]} 24... b6 {[%clk 0:01:16]} 25. Bxf6 {[%clk
0:00:48.4]} 25... bxc5 {[%clk 0:01:14.3]} 26. Qg3 {[%clk 0:00:45.5]} 26... Bg6
{[%clk 0:01:12.1]} 27. Be5 {[%clk 0:00:39.8]} 27... cxb4 {[%clk 0:01:05.5]} 28.
cxb4 {[%clk 0:00:40.7]} 28... Qc4 {[%clk 0:01:05.4]} 29. Rab1 {[%clk 0:00:29.8]}
29... Kf8 {[%clk 0:00:47.5]} 30. Rb2 {[%clk 0:00:25.7]} 30... Red8 {[%clk
0:00:38.9]} 31. f5 {[%clk 0:00:21.9]} 31... exf5 {[%clk 0:00:38.6]} 32. h4
{[%clk 0:00:16.7]} 32... h5 {[%clk 0:00:37.9]} 33. Rf3 {[%clk 0:00:10.7]} 33...
Qc1+ {[%clk 0:00:36.1]} 34. Kh2 {[%clk 0:00:11]} 34... Qxb2 {[%clk 0:00:36.4]}
35. Rxf5 {[%clk 0:00:11]} 35... Qxb4 {[%clk 0:00:32.2]} 36. Rxh5 {[%clk
0:00:10.6]} 36... Qxa5 {[%clk 0:00:27.4]} 37. Rg5 {[%clk 0:00:09.1]} 37... Qa3
{[%clk 0:00:25.4]} 38. h5 {[%clk 0:00:07.8]} 38... Qxg3+ {[%clk 0:00:24.3]} 39.
Kxg3 {[%clk 0:00:08]} 39... Be4 {[%clk 0:00:23.8]} 40. Bxg7+ {[%clk 0:00:07.6]}
40... Ke7 {[%clk 0:00:23.4]} 41. h6 {[%clk 0:00:08.1]} 41... Ra3+ {[%clk
0:00:22.8]} 42. Kh4 {[%clk 0:00:07.7]} 42... f6 {[%clk 0:00:22.8]} 43. Rg4
{[%clk 0:00:07.5]} 43... f5 {[%clk 0:00:21.6]} 44. Rg6 {[%clk 0:00:07.5]} 44...
Rc8 {[%clk 0:00:18.7]} 45. Be5 {[%clk 0:00:05.1]} 45... f4 {[%clk 0:00:18.2]}
46. Rg7+ {[%clk 0:00:05.5]} 46... Ke6 {[%clk 0:00:18.3]} 47. Bxf4 {[%clk
0:00:05.7]} 47... Ra1 {[%clk 0:00:17]} 48. g3 {[%clk 0:00:05.4]} 48... Rh1+
{[%clk 0:00:16.6]} 49. Kg5 {[%clk 0:00:06]} 49... Rf8 {[%clk 0:00:16.5]} 50. g4
{[%clk 0:00:06.5]} 50... Rf1 {[%clk 0:00:15.8]} 51. Be5 {[%clk 0:00:06.5]} 51...
Rg1 {[%clk 0:00:15.3]} 52. Rb7 {[%clk 0:00:06.2]} 52... Bf3 {[%clk 0:00:14.2]}
53. Rb6+ {[%clk 0:00:06.9]} 53... Kd7 {[%clk 0:00:14.4]} 54. Rb7+ {[%clk
0:00:07.3]} 54... Kc6 {[%clk 0:00:14.5]} 55. Rc7+ {[%clk 0:00:07.2]} 55... Kb6
{[%clk 0:00:15.1]} 56. h7 {[%clk 0:00:06.7]} 56... Rxg4+ {[%clk 0:00:14.8]} 57.
Kh6 {[%clk 0:00:07.3]} 57... Rh4+ {[%clk 0:00:10.8]} 58. Kg5 {[%clk 0:00:07.6]}
58... Rg4+ {[%clk 0:00:09.6]} 59. Kh6 {[%clk 0:00:07.9]} 59... Rh4+ {[%clk
0:00:08.8]} 60. Kg5 {[%clk 0:00:07.3]} 60... Rh1 {[%clk 0:00:08.6]} 61. h8=Q
{[%clk 0:00:06.9]} 61... Rfxh8 {[%clk 0:00:08.5]} 62. Rf7 {[%clk 0:00:04.9]}
62... Rg8+ {[%clk 0:00:08]} 63. Kf4 {[%clk 0:00:05.1]} 63... Be4 {[%clk
0:00:08]} 64. Bd6 {[%clk 0:00:05.7]} 64... Rf1+ {[%clk 0:00:07.1]} 0-1

[Event "Late-Titled-Tuesday-Blitz-February-06-2024"]
[Site "Chess.com"]
[Date "2024.02.06"]
[Round "6"]
[White "SpeedofLight0"]
[Black "GMBenjaminBok"]
[Result "0-1"]
[WhiteElo "3039"]
[BlackElo "3007"]
[TimeControl "180+1"]
[EndTime "15:07:49 PST"]
[Termination "GMBenjaminBok won on time"]

1. d4 {[%clk 0:03:00.9]} 1... Nf6 {[%clk 0:02:59.9]} 2. Nc3 {[%clk 0:03:01.1]}
2... d5 {[%clk 0:02:59.8]} 3. Bf4 {[%clk 0:03:01.2]} 3... c5 {[%clk 0:03:00]} 4.
e3 {[%clk 0:03:01.2]} 4... cxd4 {[%clk 0:02:59.8]} 5. exd4 {[%clk 0:03:02.1]}
5... a6 {[%clk 0:02:59.9]} 6. Nf3 {[%clk 0:03:02.7]} 6... Nc6 {[%clk 0:03:00.1]}
7. Ne5 {[%clk 0:03:03]} 7... Bd7 {[%clk 0:03:00.6]} 8. Be2 {[%clk 0:03:01.8]}
8... e6 {[%clk 0:02:58.7]} 9. O-O {[%clk 0:03:01.2]} 9... Be7 {[%clk 0:02:54.6]}
10. Qd2 {[%clk 0:02:40.3]} 10... Qb6 {[%clk 0:02:52.4]} 11. Rad1 {[%clk
0:02:34.7]} 11... O-O {[%clk 0:02:29.7]} 12. Bg5 {[%clk 0:02:33.1]} 12... Rfd8
{[%clk 0:02:16.7]} 13. Qe3 {[%clk 0:02:24]} 13... Rac8 {[%clk 0:01:43.4]} 14.
Bd3 {[%clk 0:02:14.5]} 14... Be8 {[%clk 0:01:17.3]} 15. Qh3 {[%clk 0:02:14.2]}
15... Nxd4 {[%clk 0:00:56]} 16. Bxh7+ {[%clk 0:02:07.4]} 16... Nxh7 {[%clk
0:00:35.5]} 17. Bxe7 {[%clk 0:02:08.3]} 17... Qxb2 {[%clk 0:00:30.8]} 18. Rxd4
{[%clk 0:01:42.4]} 18... Rxc3 {[%clk 0:00:23.4]} 19. Nd3 {[%clk 0:01:42.3]}
19... Rxd3 {[%clk 0:00:13.5]} 20. Rxd3 {[%clk 0:01:13.1]} 20... Rc8 {[%clk
0:00:13.9]} 21. Rxd5 {[%clk 0:00:49.7]} 21... Qxc2 {[%clk 0:00:11.2]} 22. Rd4
{[%clk 0:00:25.9]} 22... Qxa2 {[%clk 0:00:07.1]} 23. Rfd1 {[%clk 0:00:25.6]}
23... Qc2 {[%clk 0:00:05.7]} 24. Qe3 {[%clk 0:00:15.4]} 24... Nf8 {[%clk
0:00:04.3]} 25. h3 {[%clk 0:00:11.8]} 25... Ng6 {[%clk 0:00:04.3]} 26. Bg5
{[%clk 0:00:07.7]} 26... Kh7 {[%clk 0:00:03.7]} 27. Rd8 {[%clk 0:00:07]} 27...
Rxd8 {[%clk 0:00:03.7]} 28. Rxd8 {[%clk 0:00:07.9]} 28... Bc6 {[%clk 0:00:04.1]}
29. Kh2 {[%clk 0:00:04.3]} 29... Qf5 {[%clk 0:00:02.8]} 30. g4 {[%clk
0:00:02.8]} 30... Qe5+ {[%clk 0:00:02.6]} 31. Qxe5 {[%clk 0:00:03]} 31... Nxe5
{[%clk 0:00:03.5]} 32. Kg3 {[%clk 0:00:03.5]} 32... a5 {[%clk 0:00:03.7]} 33.
Bd2 {[%clk 0:00:03.8]} 33... a4 {[%clk 0:00:03.8]} 34. Bc3 {[%clk 0:00:04.5]}
34... Nc4 {[%clk 0:00:03.7]} 35. Ra8 {[%clk 0:00:03.5]} 35... b5 {[%clk
0:00:03.2]} 36. Ra6 {[%clk 0:00:03.6]} 36... Bd5 {[%clk 0:00:02.8]} 37. Bb4
{[%clk 0:00:04.2]} 37... Ne5 {[%clk 0:00:02.6]} 38. Rb6 {[%clk 0:00:02.8]} 38...
Bc4 {[%clk 0:00:02.3]} 39. f4 {[%clk 0:00:02.7]} 39... Nd3 {[%clk 0:00:02.7]}
40. Bd6 {[%clk 0:00:03]} 40... f6 {[%clk 0:00:02.1]} 41. Kf3 {[%clk 0:00:03.3]}
41... Bd5+ {[%clk 0:00:02.1]} 42. Ke3 {[%clk 0:00:03.4]} 42... Bc4 {[%clk
0:00:02.7]} 43. Kd4 {[%clk 0:00:03.6]} 43... Ne1 {[%clk 0:00:02.2]} 44. Ke3
{[%clk 0:00:02.9]} 44... Nd3 {[%clk 0:00:02.4]} 45. h4 {[%clk 0:00:03]} 45...
Nb2 {[%clk 0:00:02.2]} 46. h5 {[%clk 0:00:03.1]} 46... Nd1+ {[%clk 0:00:02.2]}
47. Kd4 {[%clk 0:00:03.3]} 47... Nf2 {[%clk 0:00:02.6]} 48. g5 {[%clk
0:00:03.7]} 48... fxg5 {[%clk 0:00:02.8]} 49. fxg5 {[%clk 0:00:04.6]} 49... Nh3
{[%clk 0:00:02.6]} 50. g6+ {[%clk 0:00:03.6]} 50... Kh6 {[%clk 0:00:03.5]} 51.
Bf8 {[%clk 0:00:03]} 51... Kxh5 {[%clk 0:00:03.7]} 52. Bxg7 {[%clk 0:00:03.3]}
52... Kxg6 {[%clk 0:00:04.3]} 53. Be5 {[%clk 0:00:03.9]} 53... Kf5 {[%clk
0:00:04.4]} 54. Rb7 {[%clk 0:00:03.8]} 54... Ng5 {[%clk 0:00:04.5]} 55. Bd6
{[%clk 0:00:03.2]} 55... Nf3+ {[%clk 0:00:04.7]} 56. Ke3 {[%clk 0:00:03.4]}
56... Ng5 {[%clk 0:00:04.9]} 57. Ra7 {[%clk 0:00:02.7]} 57... e5 {[%clk
0:00:04.9]} 58. Re7 {[%clk 0:00:02.6]} 58... e4 {[%clk 0:00:03.5]} 59. Re5+
{[%clk 0:00:02.6]} 59... Kf6 {[%clk 0:00:03.6]} 60. Re8 {[%clk 0:00:02.9]} 60...
Bd3 {[%clk 0:00:03.4]} 61. Ra8 {[%clk 0:00:01.9]} 61... Ke6 {[%clk 0:00:03.5]}
62. Bb4 {[%clk 0:00:02.1]} 62... Nf3 {[%clk 0:00:03.8]} 63. Ra6+ {[%clk
0:00:02.2]} 63... Kd5 {[%clk 0:00:04]} 64. Ra8 {[%clk 0:00:02.2]} 64... Kc4
{[%clk 0:00:04.3]} 65. Bf8 {[%clk 0:00:02.4]} 65... Kb3 {[%clk 0:00:04.7]} 66.
Rb8 {[%clk 0:00:02.1]} 66... a3 {[%clk 0:00:04]} 67. Ra8 {[%clk 0:00:02.5]}
67... a2 {[%clk 0:00:04.4]} 68. Ra3+ {[%clk 0:00:02.4]} 68... Kb2 {[%clk
0:00:04.9]} 69. Ra5 {[%clk 0:00:01.9]} 69... Ne1 {[%clk 0:00:03.3]} 70. Kd2
{[%clk 0:00:01.7]} 70... Nc2 {[%clk 0:00:02.9]} 71. Bg7+ {[%clk 0:00:01.9]}
71... Kb1 {[%clk 0:00:03.3]} 72. Bc3 {[%clk 0:00:01.5]} 72... b4 {[%clk
0:00:03.4]} 73. Be5 {[%clk 0:00:01.6]} 73... b3 {[%clk 0:00:03.9]} 0-1

[Event "Late-Titled-Tuesday-Blitz-February-06-2024"]
[Site "Chess.com"]
[Date "2024.02.06"]
[Round "6"]
[White "alexrustemov"]
[Black "HaryKane"]
[Result "1-0"]
[WhiteElo "2782"]
[BlackElo "2563"]
[TimeControl "180+1"]
[EndTime "15:07:55 PST"]
[Termination "alexrustemov won by resignation"]

1. d4 {[%clk 0:02:56.4]} 1... e6 {[%clk 0:03:00.6]} 2. c4 {[%clk 0:02:55.1]}
2... f5 {[%clk 0:03:00.8]} 3. g3 {[%clk 0:02:54.2]} 3... Nf6 {[%clk 0:03:01.2]}
4. Bg2 {[%clk 0:02:54.4]} 4... d5 {[%clk 0:02:58.3]} 5. Nf3 {[%clk 0:02:50.6]}
5... c6 {[%clk 0:02:58.4]} 6. Bf4 {[%clk 0:02:49.5]} 6... Be7 {[%clk 0:02:56.4]}
7. O-O {[%clk 0:02:48.6]} 7... O-O {[%clk 0:02:51.8]} 8. Nbd2 {[%clk 0:02:48]}
8... Ne4 {[%clk 0:02:41.6]} 9. Qc2 {[%clk 0:02:45.4]} 9... g5 {[%clk 0:02:39.7]}
10. Bxb8 {[%clk 0:02:42.9]} 10... Rxb8 {[%clk 0:02:37.8]} 11. Ne5 {[%clk
0:02:42.1]} 11... Bf6 {[%clk 0:02:34.8]} 12. Nxe4 {[%clk 0:02:28.9]} 12... dxe4
{[%clk 0:02:25.6]} 13. Rad1 {[%clk 0:02:26.4]} 13... Qc7 {[%clk 0:02:22.3]} 14.
f4 {[%clk 0:02:21.4]} 14... gxf4 {[%clk 0:02:13.6]} 15. gxf4 {[%clk 0:02:20.4]}
15... c5 {[%clk 0:02:06.4]} 16. e3 {[%clk 0:02:01.5]} 16... cxd4 {[%clk
0:02:06.4]} 17. exd4 {[%clk 0:01:52.6]} 17... Bd7 {[%clk 0:02:06.7]} 18. Nxd7
{[%clk 0:01:44.7]} 18... Qxd7 {[%clk 0:02:06.2]} 19. d5 {[%clk 0:01:45.4]} 19...
Rbc8 {[%clk 0:01:46]} 20. Qe2 {[%clk 0:01:44.5]} 20... Qe7 {[%clk 0:01:38.8]}
21. b3 {[%clk 0:01:39.9]} 21... Rfd8 {[%clk 0:01:33.7]} 22. Kh1 {[%clk
0:01:33.3]} 22... Kh8 {[%clk 0:01:28.6]} 23. Bh3 {[%clk 0:01:32.4]} 23... b5
{[%clk 0:01:22]} 24. dxe6 {[%clk 0:01:25.7]} 24... Qxe6 {[%clk 0:01:19.3]} 25.
Qh5 {[%clk 0:01:25.1]} 25... Rxd1 {[%clk 0:01:06.1]} 26. Rxd1 {[%clk 0:01:24.7]}
26... Rc5 {[%clk 0:01:05.3]} 27. Rd5 {[%clk 0:01:07.5]} 27... Rxd5 {[%clk
0:00:26.6]} 28. cxd5 {[%clk 0:01:08.4]} 28... Qxd5 {[%clk 0:00:26.6]} 29. Bxf5
{[%clk 0:01:08.8]} 29... e3+ {[%clk 0:00:22.6]} 30. Kg1 {[%clk 0:01:09]} 30...
Qg8+ {[%clk 0:00:16.9]} 31. Kf1 {[%clk 0:01:08.1]} 31... Bd4 {[%clk 0:00:14]}
32. Be4 {[%clk 0:01:00.5]} 32... e2+ {[%clk 0:00:09.8]} 33. Kxe2 {[%clk
0:00:59.2]} 33... Bf6 {[%clk 0:00:08.1]} 34. Kf3 {[%clk 0:00:52.9]} 34... a5
{[%clk 0:00:07.3]} 35. Qxb5 {[%clk 0:00:52]} 35... Qg1 {[%clk 0:00:06.6]} 36.
Qe8+ {[%clk 0:00:41.2]} 36... Kg7 {[%clk 0:00:06]} 37. Qd7+ {[%clk 0:00:41.1]}
37... Kf8 {[%clk 0:00:05.3]} 38. Qc8+ {[%clk 0:00:38.2]} 38... Ke7 {[%clk
0:00:02.5]} 39. Qc7+ {[%clk 0:00:33.8]} 39... Kf8 {[%clk 0:00:02.4]} 40. Qd6+
{[%clk 0:00:28.8]} 40... Kg7 {[%clk 0:00:01.7]} 41. Qd7+ {[%clk 0:00:28.4]}
41... Kf8 {[%clk 0:00:02]} 42. Qd2 {[%clk 0:00:28]} 42... Qf1+ {[%clk
0:00:01.6]} 43. Qf2 {[%clk 0:00:26.3]} 43... Qd1+ {[%clk 0:00:01.9]} 44. Qe2
{[%clk 0:00:24.4]} 44... Qh1+ {[%clk 0:00:01.8]} 45. Kg3 {[%clk 0:00:24.2]}
45... Qg1+ {[%clk 0:00:02.1]} 46. Bg2 {[%clk 0:00:23.5]} 46... Qc5 {[%clk
0:00:02.3]} 47. Qd3 {[%clk 0:00:18.7]} 47... h5 {[%clk 0:00:02.3]} 48. Kf3
{[%clk 0:00:18.3]} 48... h4 {[%clk 0:00:02.4]} 49. h3 {[%clk 0:00:18]} 49...
Qh5+ {[%clk 0:00:02.5]} 50. Kf2 {[%clk 0:00:17.3]} 50... Qc5+ {[%clk 0:00:03.1]}
51. Ke2 {[%clk 0:00:16.2]} 51... Qg1 {[%clk 0:00:02.3]} 52. Qf3 {[%clk
0:00:15.4]} 52... Qc1 {[%clk 0:00:02]} 53. Kd3 {[%clk 0:00:14.9]} 53... Qb1+
{[%clk 0:00:01.9]} 54. Kc4 {[%clk 0:00:14.7]} 54... Qxa2 {[%clk 0:00:02.4]} 55.
Qd3 {[%clk 0:00:12.4]} 55... Qb2 {[%clk 0:00:02]} 56. Bd5 {[%clk 0:00:11.2]}
56... Qc1+ {[%clk 0:00:02.3]} 57. Kb5 {[%clk 0:00:10.6]} 57... Qc7 {[%clk
0:00:02.4]} 58. Bc4 {[%clk 0:00:10]} 58... Qxf4 {[%clk 0:00:02.6]} 59. Qd5
{[%clk 0:00:09.4]} 59... Qb8+ {[%clk 0:00:02.4]} 60. Kc6 {[%clk 0:00:07.9]}
60... Qc8+ {[%clk 0:00:02.3]} 61. Kd6 {[%clk 0:00:05.4]} 61... Be7+ {[%clk
0:00:01.7]} 62. Ke5 {[%clk 0:00:05.1]} 62... Qc7+ {[%clk 0:00:02.4]} 63. Kf5
{[%clk 0:00:05.1]} 63... Qc8+ {[%clk 0:00:02.9]} 64. Kg6 {[%clk 0:00:04.6]}
64... Qe8+ {[%clk 0:00:03.3]} 65. Kh6 {[%clk 0:00:03.9]} 65... Bf6 {[%clk
0:00:02.8]} 66. Qg8+ {[%clk 0:00:03.5]} 66... Ke7 {[%clk 0:00:03.3]} 67. Qe6+
{[%clk 0:00:04.1]} 67... Kd8 {[%clk 0:00:03.7]} 68. Qxf6+ {[%clk 0:00:04.8]}
68... Qe7 {[%clk 0:00:04.5]} 69. Qxe7+ {[%clk 0:00:04.6]} 69... Kxe7 {[%clk
0:00:05.4]} 70. Kg5 {[%clk 0:00:03.7]} 70... Kd6 {[%clk 0:00:06]} 71. Kxh4
{[%clk 0:00:04]} 71... a4 {[%clk 0:00:06.9]} 72. bxa4 {[%clk 0:00:03.8]} 1-0

[Event "Late-Titled-Tuesday-Blitz-February-06-2024"]
[Site "Chess.com"]
[Date "2024.02.06"]
[Round "6"]
[White "Canal_Showdrez"]
[Black "Resignify"]
[Result "0-1"]
[WhiteElo "2042"]
[BlackElo "2326"]
[TimeControl "180+1"]
[EndTime "15:08:08 PST"]
[Termination "Resignify won by checkmate"]

1. d4 {[%clk 0:03:00.9]} 1... Nf6 {[%clk 0:02:58.4]} 2. Nf3 {[%clk 0:03:00.1]}
2... g6 {[%clk 0:02:58]} 3. e3 {[%clk 0:03:00.3]} 3... Bg7 {[%clk 0:02:58.4]} 4.
Bd3 {[%clk 0:03:00.8]} 4... d6 {[%clk 0:02:58.4]} 5. Nbd2 {[%clk 0:03:01.3]}
5... O-O {[%clk 0:02:58.4]} 6. O-O {[%clk 0:03:00.6]} 6... b6 {[%clk 0:02:57.3]}
7. Re1 {[%clk 0:02:59.2]} 7... c5 {[%clk 0:02:55.6]} 8. c3 {[%clk 0:02:58.3]}
8... Bb7 {[%clk 0:02:55.3]} 9. e4 {[%clk 0:02:56.1]} 9... cxd4 {[%clk
0:02:53.7]} 10. cxd4 {[%clk 0:02:55.7]} 10... Nc6 {[%clk 0:02:54.1]} 11. e5
{[%clk 0:02:51.4]} 11... dxe5 {[%clk 0:02:48]} 12. dxe5 {[%clk 0:02:52.3]} 12...
Qxd3 {[%clk 0:02:45.9]} 13. exf6 {[%clk 0:02:52]} 13... exf6 {[%clk 0:02:39.5]}
14. Re3 {[%clk 0:02:47.4]} 14... Qd7 {[%clk 0:02:36.9]} 15. Qe1 {[%clk
0:02:11.8]} 15... Rfe8 {[%clk 0:02:33.7]} 16. Nb3 {[%clk 0:02:07.3]} 16... f5
{[%clk 0:02:28.8]} 17. Bd2 {[%clk 0:01:57.1]} 17... Rxe3 {[%clk 0:02:21.1]} 18.
Bxe3 {[%clk 0:01:51.2]} 18... Bxb2 {[%clk 0:02:19.2]} 19. Rd1 {[%clk 0:01:51.3]}
19... Qe8 {[%clk 0:02:15.5]} 20. Qf1 {[%clk 0:01:41.9]} 20... Ne5 {[%clk
0:01:58.9]} 21. Ng5 {[%clk 0:01:30.2]} 21... h6 {[%clk 0:01:48.8]} 22. Nh3
{[%clk 0:01:27.5]} 22... Rd8 {[%clk 0:01:31.3]} 23. Bxh6 {[%clk 0:01:25.6]}
23... Ng4 {[%clk 0:01:18.6]} 24. Bg5 {[%clk 0:01:15.6]} 24... Rxd1 {[%clk
0:01:16.2]} 25. Qxd1 {[%clk 0:01:14.6]} 25... Be5 {[%clk 0:01:05.7]} 26. Qd8
{[%clk 0:01:06.2]} 26... Qxd8 {[%clk 0:01:02.4]} 27. Bxd8 {[%clk 0:01:07.1]}
27... Bxh2+ {[%clk 0:00:54.6]} 28. Kf1 {[%clk 0:01:05.8]} 28... Be5 {[%clk
0:00:50.5]} 29. Be7 {[%clk 0:00:56.9]} 29... Ba6+ {[%clk 0:00:44.8]} 30. Ke1
{[%clk 0:00:49.1]} 30... Bc3+ {[%clk 0:00:43.4]} 31. Kd1 {[%clk 0:00:48.7]}
31... Bf1 {[%clk 0:00:38]} 32. Kc2 {[%clk 0:00:45.6]} 32... Be5 {[%clk
0:00:29.8]} 33. f3 {[%clk 0:00:40]} 33... Bxg2 {[%clk 0:00:25.1]} 34. fxg4
{[%clk 0:00:39.7]} 34... Bxh3 {[%clk 0:00:23.5]} 35. gxf5 {[%clk 0:00:40.1]}
35... Bxf5+ {[%clk 0:00:24.4]} 36. Kd2 {[%clk 0:00:39.9]} 36... Be6 {[%clk
0:00:23.5]} 37. Nc1 {[%clk 0:00:36.8]} 37... f5 {[%clk 0:00:20]} 38. Bg5 {[%clk
0:00:35.6]} 38... Kf7 {[%clk 0:00:19.6]} 39. Nd3 {[%clk 0:00:35.2]} 39... Bf6
{[%clk 0:00:19.1]} 40. Bf4 {[%clk 0:00:33.8]} 40... g5 {[%clk 0:00:19.2]} 41.
Bb8 {[%clk 0:00:33.2]} 41... a6 {[%clk 0:00:18.9]} 42. Ba7 {[%clk 0:00:33.3]}
42... b5 {[%clk 0:00:19.1]} 43. Nc5 {[%clk 0:00:33.4]} 43... Bxa2 {[%clk
0:00:17.9]} 44. Nxa6 {[%clk 0:00:33.3]} 44... Bc4 {[%clk 0:00:17.2]} 45. Nc5
{[%clk 0:00:28.7]} 45... f4 {[%clk 0:00:17.7]} 46. Ne4 {[%clk 0:00:28]} 46...
Ke6 {[%clk 0:00:17]} 47. Bb8 {[%clk 0:00:24.7]} 47... Kf5 {[%clk 0:00:15.8]} 48.
Nd6+ {[%clk 0:00:22.9]} 48... Kg4 {[%clk 0:00:16.3]} 49. Ke1 {[%clk 0:00:20.3]}
49... Bc3+ {[%clk 0:00:15.2]} 50. Kf2 {[%clk 0:00:20.8]} 50... Bd4+ {[%clk
0:00:15.5]} 51. Kg2 {[%clk 0:00:20.2]} 51... Bd3 {[%clk 0:00:13.7]} 52. Nf7
{[%clk 0:00:17.6]} 52... f3+ {[%clk 0:00:13.4]} 53. Kh2 {[%clk 0:00:16.9]} 53...
f2 {[%clk 0:00:11.7]} 54. Nh6+ {[%clk 0:00:14.9]} 54... Kh5 {[%clk 0:00:11.3]}
55. Nf5 {[%clk 0:00:12.7]} 55... f1=Q {[%clk 0:00:10.4]} 56. Ng3+ {[%clk
0:00:12.9]} 56... Kg4 {[%clk 0:00:10.6]} 57. Nxf1 {[%clk 0:00:13]} 57... Bxf1
{[%clk 0:00:10.7]} 58. Bd6 {[%clk 0:00:10]} 58... Bc3 {[%clk 0:00:10.4]} 59. Kg1
{[%clk 0:00:09.5]} 59... Bc4 {[%clk 0:00:10.4]} 60. Kf2 {[%clk 0:00:09.3]} 60...
b4 {[%clk 0:00:11.3]} 61. Kg2 {[%clk 0:00:09]} 61... b3 {[%clk 0:00:11.8]} 62.
Ba3 {[%clk 0:00:08.6]} 62... b2 {[%clk 0:00:11.5]} 63. Bxb2 {[%clk 0:00:08.9]}
63... Bxb2 {[%clk 0:00:12.4]} 64. Kf2 {[%clk 0:00:09.4]} 64... Bd5 {[%clk
0:00:09.8]} 65. Ke3 {[%clk 0:00:10.3]} 65... Kh3 {[%clk 0:00:09.5]} 66. Kf2
{[%clk 0:00:10.7]} 66... g4 {[%clk 0:00:08.9]} 67. Kg1 {[%clk 0:00:11.4]} 67...
Bd4+ {[%clk 0:00:08.3]} 68. Kf1 {[%clk 0:00:11.7]} 68... Bf3 {[%clk 0:00:07.4]}
69. Ke1 {[%clk 0:00:11.2]} 69... Be3 {[%clk 0:00:07.5]} 70. Kf1 {[%clk
0:00:10.3]} 70... g3 {[%clk 0:00:06.7]} 71. Ke1 {[%clk 0:00:10.5]} 71... Bf2+
{[%clk 0:00:06.6]} 72. Kf1 {[%clk 0:00:10.1]} 72... g2+ {[%clk 0:00:05.7]} 73.
Kxf2 {[%clk 0:00:09.9]} 73... Kh2 {[%clk 0:00:06.4]} 74. Kxf3 {[%clk 0:00:10.1]}
74... g1=Q {[%clk 0:00:07.1]} 75. Kf4 {[%clk 0:00:11]} 75... Qf1+ {[%clk
0:00:07.5]} 76. Ke5 {[%clk 0:00:10.6]} 76... Qc4 {[%clk 0:00:07.4]} 77. Kf6
{[%clk 0:00:09.8]} 77... Kg3 {[%clk 0:00:08.3]} 78. Kg7 {[%clk 0:00:10.4]} 78...
Qc6 {[%clk 0:00:08.4]} 79. Kf7 {[%clk 0:00:10.4]} 79... Kg4 {[%clk 0:00:08.3]}
80. Ke7 {[%clk 0:00:11.3]} 80... Kf5 {[%clk 0:00:08.3]} 81. Kf7 {[%clk
0:00:12.2]} 81... Qb7+ {[%clk 0:00:08.5]} 82. Kg8 {[%clk 0:00:12.1]} 82... Kf6
{[%clk 0:00:08.4]} 83. Kf8 {[%clk 0:00:13]} 83... Qf7# {[%clk 0:00:08.3]} 0-1